[Event "Live Chess"]
[Site "Chess.com"]
[Date "2024.06.02"]
[Round "-"]
[White "McFim"]
[Black "juniortay"]
[Result "1-0"]
[WhiteElo "1678"]
[BlackElo "2414"]
[TimeControl "300"]
[EndTime "22:15:45 PDT"]
[Termination "McFim won by checkmate"]

1. e4 {[%clk 0:04:57.3]} 1... e5 {[%clk 0:04:59.2]} 2. Nf3 {[%clk 0:04:55.9]}
2... Nf6 {[%clk 0:04:59.1]} 3. Nxe5 {[%clk 0:04:52.2]} 3... Nc6 {[%clk
0:04:58.7]} 4. Nxc6 {[%clk 0:04:50.8]} 4... dxc6 {[%clk 0:04:58.6]} 5. Nc3
{[%clk 0:04:49.8]} 5... Bc5 {[%clk 0:04:57.9]} 6. h3 {[%clk 0:04:48.9]} 6... Be6
{[%clk 0:04:52.3]} 7. d3 {[%clk 0:04:47.3]} 7... h5 {[%clk 0:04:50.5]} 8. a3
{[%clk 0:04:45.9]} 8... Qd7 {[%clk 0:04:44.1]} 9. Be3 {[%clk 0:04:44]} 9... Bxe3
{[%clk 0:04:42.8]} 10. fxe3 {[%clk 0:04:42.4]} 10... O-O-O {[%clk 0:04:42.7]}
11. Qd2 {[%clk 0:04:37.2]} 11... Qd6 {[%clk 0:04:39.9]} 12. O-O-O {[%clk
0:04:32.6]} 12... Qc5 {[%clk 0:04:34.1]} 13. Qe1 {[%clk 0:04:29.8]} 13... b5
{[%clk 0:04:25.2]} 14. d4 {[%clk 0:04:19]} 14... Qb6 {[%clk 0:04:24]} 15. e5
{[%clk 0:04:16.8]} 15... Nd5 {[%clk 0:04:21.7]} 16. Nxd5 {[%clk 0:04:14.3]}
16... cxd5 {[%clk 0:04:14.6]} 17. b4 {[%clk 0:03:59.2]} 17... Kb8 {[%clk
0:04:10.6]} 18. Be2 {[%clk 0:03:48.5]} 18... g6 {[%clk 0:04:04.4]} 19. Rf1
{[%clk 0:03:34.5]} 19... Rhe8 {[%clk 0:03:54.8]} 20. Qc3 {[%clk 0:03:29.9]}
20... c6 {[%clk 0:03:53.3]} 21. Kb2 {[%clk 0:03:23.5]} 21... Re7 {[%clk
0:03:50.9]} 22. Ra1 {[%clk 0:03:20.9]} 22... Rb7 {[%clk 0:03:35.8]} 23. Qc5
{[%clk 0:03:05.5]} 23... Qc7 {[%clk 0:03:28]} 24. Qc3 {[%clk 0:03:00.1]} 24...
Ka8 {[%clk 0:03:23.9]} 25. Qd2 {[%clk 0:02:58.8]} 25... Rdb8 {[%clk 0:03:19.9]}
26. c3 {[%clk 0:02:56.4]} 26... a5 {[%clk 0:03:17.7]} 27. Ra2 {[%clk 0:02:54.7]}
27... Ra7 {[%clk 0:03:16.9]} 28. Rfa1 {[%clk 0:02:53]} 28... Rb6 {[%clk
0:03:16]} 29. Kb1 {[%clk 0:02:51.2]} 29... Rba6 {[%clk 0:03:15.4]} 30. Qb2
{[%clk 0:02:38]} 30... Qe7 {[%clk 0:03:13.3]} 31. Qd2 {[%clk 0:02:34.1]} 31...
Qg5 {[%clk 0:03:12.1]} 32. Bd3 {[%clk 0:02:23.5]} 32... Qg3 {[%clk 0:03:05.7]}
33. Kb2 {[%clk 0:02:08.7]} 33... g5 {[%clk 0:02:58.8]} 34. Kb3 {[%clk
0:01:51.7]} 34... g4 {[%clk 0:02:51.9]} 35. hxg4 {[%clk 0:01:49.1]} 35... Qxg4
{[%clk 0:02:51.8]} 36. Qe2 {[%clk 0:01:39.3]} 36... Qg5 {[%clk 0:02:48.9]} 37.
Rh1 {[%clk 0:01:33.3]} 37... Bg4 {[%clk 0:02:43.2]} 38. Qf2 {[%clk 0:01:30.1]}
38... Be6 {[%clk 0:02:09.8]} 39. Be2 {[%clk 0:01:20.5]} 39... axb4 {[%clk
0:01:54.1]} 40. cxb4 {[%clk 0:01:17.8]} 40... c5 {[%clk 0:01:53.7]} 41. bxc5
{[%clk 0:01:10.3]} 41... b4 {[%clk 0:01:46.7]} 42. Bxa6 {[%clk 0:01:06.4]} 42...
Rxa6 {[%clk 0:01:42.9]} 43. axb4 {[%clk 0:01:03.8]} 43... Rxa2 {[%clk
0:01:41.4]} 44. Qxa2+ {[%clk 0:00:54.6]} 44... Kb7 {[%clk 0:01:39.2]} 45. Qf2
{[%clk 0:00:52.5]} 45... Qg6 {[%clk 0:01:37.9]} 46. Kc3 {[%clk 0:00:47.8]} 46...
Qe4 {[%clk 0:01:32.9]} 47. Ra1 {[%clk 0:00:37.5]} 47... Bf5 {[%clk 0:01:30.6]}
48. Qd2 {[%clk 0:00:33.9]} 48... h4 {[%clk 0:01:28.4]} 49. b5 {[%clk 0:00:28.7]}
49... f6 {[%clk 0:01:23.1]} 50. exf6 {[%clk 0:00:25.9]} 50... Qe6 {[%clk
0:01:19.8]} 51. b6 {[%clk 0:00:21.8]} 51... Qxf6 {[%clk 0:01:14.7]} 52. Ra7+
{[%clk 0:00:19.8]} 52... Kb8 {[%clk 0:01:11.8]} 53. Qa2 {[%clk 0:00:17.6]} 53...
Bc8 {[%clk 0:01:08.4]} 54. Ra8+ {[%clk 0:00:16.4]} 54... Kb7 {[%clk 0:01:08]}
55. Qa7+ {[%clk 0:00:15]} 55... Kc6 {[%clk 0:01:07.6]} 56. Qc7+ {[%clk
0:00:13.7]} 56... Kb5 {[%clk 0:01:06.8]} 57. Qxc8 {[%clk 0:00:11.1]} 57... Qf2
{[%clk 0:01:03.8]} 58. Qa6+ {[%clk 0:00:09]} 58... Kc6 {[%clk 0:01:03.1]} 59.
b7+ {[%clk 0:00:08.1]} 59... Kd7 {[%clk 0:01:02.6]} 60. Qd6# {[%clk 0:00:06.7]}
1-0

[Event "Live Chess"]
[Site "Chess.com"]
[Date "2024.06.02"]
[Round "-"]
[White "rekosheten"]
[Black "Tushinskiy"]
[Result "0-1"]
[WhiteElo "2460"]
[BlackElo "2287"]
[TimeControl "300"]
[EndTime "22:16:36 PDT"]
[Termination "Tushinskiy won on time"]

1. e4 {[%clk 0:04:57.2]} 1... e5 {[%clk 0:04:49.7]} 2. Nf3 {[%clk 0:04:55.2]}
2... d6 {[%clk 0:04:49.4]} 3. d4 {[%clk 0:04:54.1]} 3... Bg4 {[%clk 0:04:47.8]}
4. dxe5 {[%clk 0:04:52.8]} 4... Nd7 {[%clk 0:04:30.9]} 5. exd6 {[%clk
0:04:48.4]} 5... Bxd6 {[%clk 0:04:30.8]} 6. h3 {[%clk 0:04:45.6]} 6... Bh5
{[%clk 0:04:29.1]} 7. Nbd2 {[%clk 0:04:32.1]} 7... Qe7 {[%clk 0:04:26.9]} 8. Bd3
{[%clk 0:04:26.8]} 8... Ngf6 {[%clk 0:04:25.4]} 9. O-O {[%clk 0:04:25.3]} 9...
O-O-O {[%clk 0:04:24.5]} 10. Re1 {[%clk 0:04:22.8]} 10... Ne5 {[%clk 0:04:22.8]}
11. Qe2 {[%clk 0:04:13.9]} 11... h6 {[%clk 0:04:19.9]} 12. Nc4 {[%clk
0:03:18.6]} 12... Nxf3+ {[%clk 0:04:13.8]} 13. gxf3 {[%clk 0:03:16.5]} 13... Bc5
{[%clk 0:04:12.5]} 14. c3 {[%clk 0:02:58.4]} 14... g5 {[%clk 0:04:10.4]} 15. b4
{[%clk 0:02:54.1]} 15... Bb6 {[%clk 0:04:08.2]} 16. a4 {[%clk 0:02:50.8]} 16...
Qd7 {[%clk 0:04:06.8]} 17. Ne5 {[%clk 0:02:44.3]} 17... Qxh3 {[%clk 0:04:00.9]}
18. a5 {[%clk 0:02:29.1]} 18... Qg3+ {[%clk 0:03:57.4]} 19. Kf1 {[%clk
0:02:27.5]} 19... Bxf2 {[%clk 0:03:56.3]} 20. Qxf2 {[%clk 0:02:23.1]} 20... Qxe5
{[%clk 0:03:55.4]} 21. Be2 {[%clk 0:02:15]} 21... Kb8 {[%clk 0:03:49.7]} 22. Be3
{[%clk 0:02:13]} 22... a6 {[%clk 0:03:45.2]} 23. Bd4 {[%clk 0:02:06.2]} 23...
Qe6 {[%clk 0:03:43]} 24. b5 {[%clk 0:02:04.4]} 24... axb5 {[%clk 0:03:26.4]} 25.
Bxb5 {[%clk 0:01:52.6]} 25... g4 {[%clk 0:03:19.4]} 26. a6 {[%clk 0:01:34.1]}
26... g3 {[%clk 0:03:18.2]} 27. Ba7+ {[%clk 0:01:15.1]} 27... Kc8 {[%clk
0:03:11.7]} 28. axb7+ {[%clk 0:01:15]} 28... Kxb7 {[%clk 0:03:11.4]} 29. Qb2
{[%clk 0:00:37.5]} 29... Qh3+ {[%clk 0:03:07.6]} 30. Kg1 {[%clk 0:00:34.3]}
30... Qh2+ {[%clk 0:03:01.3]} 31. Qxh2 {[%clk 0:00:32.7]} 31... gxh2+ {[%clk
0:03:01.2]} 32. Kxh2 {[%clk 0:00:32.6]} 32... Rd2+ {[%clk 0:02:55.8]} 33. Kg3
{[%clk 0:00:23.8]} 33... Rb2 {[%clk 0:02:52.6]} 34. Be2 {[%clk 0:00:17.5]} 34...
Rg8+ {[%clk 0:02:50.3]} 35. Kf4 {[%clk 0:00:16.2]} 35... Re8 {[%clk 0:02:42.6]}
36. Bd4 {[%clk 0:00:14]} 36... Nxe4 {[%clk 0:02:37.9]} 37. Ba6+ {[%clk
0:00:11.6]} 37... Kc6 {[%clk 0:02:34.7]} 38. Rxe4 {[%clk 0:00:09.5]} 38... Rxe4+
{[%clk 0:02:33.2]} 39. fxe4 {[%clk 0:00:09.4]} 39... Bg6 {[%clk 0:02:29.9]} 40.
Bc4 {[%clk 0:00:07.9]} 40... h5 {[%clk 0:02:24.1]} 41. Bd5+ {[%clk 0:00:06.9]}
41... Kd7 {[%clk 0:02:21.3]} 42. Rh1 {[%clk 0:00:06.8]} 42... Rg2 {[%clk
0:02:15.7]} 43. Ke5 {[%clk 0:00:05.1]} 43... Rg4 {[%clk 0:02:08.8]} 44. Kf6
{[%clk 0:00:04.3]} 44... c6 {[%clk 0:02:01.9]} 45. Bc4 {[%clk 0:00:02.5]} 45...
Bxe4 {[%clk 0:01:59.1]} 46. Re1 {[%clk 0:00:01.1]} 46... Rf4+ {[%clk 0:01:54.1]}
47. Kg5 {[%clk 0:00:00.4]} 47... Rf5+ {[%clk 0:01:52.5]} 48. Kh6 {[%clk
0:00:00.3]} 48... Bd5 {[%clk 0:01:51.4]} 0-1

[Event "Live Chess"]
[Site "Chess.com"]
[Date "2024.06.02"]
[Round "-"]
[White "RockTroll"]
[Black "KGreenGator"]
[Result "1/2-1/2"]
[WhiteElo "2167"]
[BlackElo "1783"]
[TimeControl "300"]
[EndTime "22:16:45 PDT"]
[Termination "Game drawn - timeout vs insufficient material"]

1. Nf3 {[%clk 0:04:57.3]} 1... d5 {[%clk 0:04:59]} 2. g3 {[%clk 0:04:57.2]} 2...
Nf6 {[%clk 0:04:57.9]} 3. Bg2 {[%clk 0:04:57.1]} 3... e6 {[%clk 0:04:57.4]} 4.
O-O {[%clk 0:04:57]} 4... Be7 {[%clk 0:04:56.7]} 5. d3 {[%clk 0:04:56.9]} 5...
O-O {[%clk 0:04:55.7]} 6. Nbd2 {[%clk 0:04:56.5]} 6... Nc6 {[%clk 0:04:54.3]} 7.
e4 {[%clk 0:04:55.2]} 7... dxe4 {[%clk 0:04:52.8]} 8. dxe4 {[%clk 0:04:52.2]}
8... e5 {[%clk 0:04:52.1]} 9. Re1 {[%clk 0:04:37.9]} 9... Bg4 {[%clk 0:04:49.8]}
10. h3 {[%clk 0:04:36.7]} 10... Be6 {[%clk 0:04:47.6]} 11. c3 {[%clk 0:04:32.8]}
11... Qc8 {[%clk 0:04:46.7]} 12. Kh2 {[%clk 0:04:31]} 12... Qd8 {[%clk 0:04:43]}
13. Qc2 {[%clk 0:04:29.2]} 13... Bc5 {[%clk 0:04:41.9]} 14. Nf1 {[%clk
0:04:21.2]} 14... Bc4 {[%clk 0:04:36.3]} 15. Be3 {[%clk 0:04:19.1]} 15... Bxe3
{[%clk 0:04:34.3]} 16. Nxe3 {[%clk 0:04:17.5]} 16... Bd3 {[%clk 0:04:33.2]} 17.
Qb3 {[%clk 0:04:15.5]} 17... b6 {[%clk 0:04:29]} 18. Rad1 {[%clk 0:04:11.3]}
18... Na5 {[%clk 0:04:26.9]} 19. Qa3 {[%clk 0:04:05.2]} 19... Re8 {[%clk
0:04:18.7]} 20. c4 {[%clk 0:03:59.7]} 20... Nxe4 {[%clk 0:04:07.5]} 21. Qxd3
{[%clk 0:03:55.3]} 21... Qxd3 {[%clk 0:04:04.5]} 22. Rxd3 {[%clk 0:03:54.9]}
22... Nxf2 {[%clk 0:04:03.5]} 23. Rd7 {[%clk 0:03:53.9]} 23... c6 {[%clk
0:03:59.5]} 24. Ng5 {[%clk 0:03:42.5]} 24... Rf8 {[%clk 0:03:55.4]} 25. Kg1
{[%clk 0:03:37.7]} 25... h6 {[%clk 0:03:51.2]} 26. Nxf7 {[%clk 0:03:29.3]} 26...
Rxf7 {[%clk 0:03:48.5]} 27. Rxf7 {[%clk 0:03:27]} 27... Kxf7 {[%clk 0:03:48.2]}
28. Kxf2 {[%clk 0:03:26.4]} 28... Rc8 {[%clk 0:03:44.9]} 29. b3 {[%clk 0:03:25]}
29... Nb7 {[%clk 0:03:44]} 30. Ng4 {[%clk 0:03:23.8]} 30... e4 {[%clk
0:03:41.8]} 31. Bxe4 {[%clk 0:03:21.5]} 31... Nc5 {[%clk 0:03:40.3]} 32. Bf3
{[%clk 0:03:19.7]} 32... Nd3+ {[%clk 0:03:39.2]} 33. Ke2 {[%clk 0:03:19.1]}
33... Nxe1 {[%clk 0:03:38.6]} 34. Kxe1 {[%clk 0:03:19]} 34... c5 {[%clk
0:03:36.7]} 35. Bd5+ {[%clk 0:03:17.1]} 35... Kg6 {[%clk 0:03:34.2]} 36. Kf2
{[%clk 0:03:16.6]} 36... Rf8+ {[%clk 0:03:29.8]} 37. Ke3 {[%clk 0:03:16]} 37...
Re8+ {[%clk 0:03:28.7]} 38. Kf4 {[%clk 0:03:14.1]} 38... Re2 {[%clk 0:03:27.1]}
39. Ne5+ {[%clk 0:03:10.3]} 39... Kf6 {[%clk 0:03:24.9]} 40. Ng4+ {[%clk
0:03:06.8]} 40... Ke7 {[%clk 0:03:23.5]} 41. Ne3 {[%clk 0:02:31.3]} 41... Rxa2
{[%clk 0:03:21.7]} 42. Nf5+ {[%clk 0:02:30.9]} 42... Kf6 {[%clk 0:03:19.7]} 43.
Nd6 {[%clk 0:02:30.1]} 43... Ra3 {[%clk 0:03:15.3]} 44. Nc8 {[%clk 0:02:29.7]}
44... g5+ {[%clk 0:03:08.2]} 45. Kg4 {[%clk 0:02:27.3]} 45... Kg6 {[%clk
0:03:00.9]} 46. Be4+ {[%clk 0:02:24.1]} 46... Kg7 {[%clk 0:02:59.2]} 47. h4
{[%clk 0:02:13.4]} 47... Rxb3 {[%clk 0:02:52.2]} 48. Nxa7 {[%clk 0:02:11.4]}
48... gxh4 {[%clk 0:02:49.9]} 49. gxh4 {[%clk 0:02:09.4]} 49... Rc3 {[%clk
0:02:48.7]} 50. Bd5 {[%clk 0:02:07.9]} 50... Rd3 {[%clk 0:02:46]} 51. Nb5 {[%clk
0:01:56.3]} 51... Rb3 {[%clk 0:02:34.3]} 52. Nd6 {[%clk 0:01:40.6]} 52... Kg6
{[%clk 0:02:31.1]} 53. Nf5 {[%clk 0:01:35]} 53... h5+ {[%clk 0:02:29.9]} 54. Kf4
{[%clk 0:01:34.4]} 54... b5 {[%clk 0:02:24]} 55. cxb5 {[%clk 0:01:26.3]} 55...
Rxb5 {[%clk 0:02:23]} 56. Ne3 {[%clk 0:01:19.3]} 56... Rb4+ {[%clk 0:02:20.2]}
57. Bc4 {[%clk 0:01:18.5]} 57... Rb2 {[%clk 0:02:15.3]} 58. Bd3+ {[%clk
0:01:16.1]} 58... Kf6 {[%clk 0:02:09.8]} 59. Nd5+ {[%clk 0:01:11.6]} 59... Kg7
{[%clk 0:02:08.9]} 60. Kg5 {[%clk 0:01:06.2]} 60... Rd2 {[%clk 0:02:05.6]} 61.
Be4 {[%clk 0:01:05.4]} 61... Rd4 {[%clk 0:02:04.2]} 62. Bf3 {[%clk 0:01:02.9]}
62... c4 {[%clk 0:02:00.1]} 63. Ne7 {[%clk 0:00:53.7]} 63... Kf7 {[%clk
0:01:49.8]} 64. Nf5 {[%clk 0:00:50.9]} 64... Rd2 {[%clk 0:01:44.1]} 65. Bxh5+
{[%clk 0:00:49.2]} 65... Kf8 {[%clk 0:01:41.7]} 66. Bg6 {[%clk 0:00:45.1]} 66...
c3 {[%clk 0:01:39.6]} 67. Ne3 {[%clk 0:00:44.4]} 67... Rh2 {[%clk 0:01:37.8]}
68. h5 {[%clk 0:00:42.4]} 68... Kg7 {[%clk 0:01:33.1]} 69. h6+ {[%clk
0:00:37.2]} 69... Rxh6 {[%clk 0:01:28.4]} 70. Nf5+ {[%clk 0:00:36.4]} 70... Kf8
{[%clk 0:01:26.4]} 71. Nxh6 {[%clk 0:00:36.1]} 71... Ke7 {[%clk 0:01:23.9]} 72.
Bc2 {[%clk 0:00:36]} 72... Kd6 {[%clk 0:01:22.5]} 73. Kf4 {[%clk 0:00:35.8]}
73... Kd5 {[%clk 0:01:21.2]} 74. Ke3 {[%clk 0:00:35.7]} 74... Kc4 {[%clk
0:01:20.3]} 75. Ng4 {[%clk 0:00:34.4]} 75... Kb4 {[%clk 0:01:19.6]} 76. Kd3
{[%clk 0:00:34.2]} 76... Ka3 {[%clk 0:01:17.4]} 77. Ne3 {[%clk 0:00:34.1]} 77...
Kb2 {[%clk 0:01:16.5]} 78. Nd1+ {[%clk 0:00:34]} 78... Kc1 {[%clk 0:01:15.1]}
79. Nxc3 {[%clk 0:00:32.2]} 79... Kb2 {[%clk 0:01:14]} 80. Nb5 {[%clk
0:00:26.5]} 80... Kc1 {[%clk 0:01:13]} 81. Ba4 {[%clk 0:00:19.1]} 81... Kb2
{[%clk 0:01:12.1]} 82. Kc4 {[%clk 0:00:16.8]} 82... Kc1 {[%clk 0:01:11.2]} 83.
Kc3 {[%clk 0:00:16.3]} 83... Kb1 {[%clk 0:01:10.2]} 84. Bb3 {[%clk 0:00:12.8]}
84... Kc1 {[%clk 0:01:07.9]} 85. Nd4 {[%clk 0:00:10]} 85... Kb1 {[%clk
0:01:06.8]} 86. Ne2 {[%clk 0:00:08.8]} 86... Ka1 {[%clk 0:01:05.3]} 87. Bc4
{[%clk 0:00:07.3]} 87... Kb1 {[%clk 0:01:04.4]} 88. Kb3 {[%clk 0:00:05.8]} 88...
Ka1 {[%clk 0:01:02.8]} 89. Bb5 {[%clk 0:00:05.4]} 89... Kb1 {[%clk 0:01:02]} 90.
Bd3+ {[%clk 0:00:05]} 90... Ka1 {[%clk 0:01:01.1]} 91. Bc4 {[%clk 0:00:04.6]}
91... Kb1 {[%clk 0:01:00.3]} 92. Nc3+ {[%clk 0:00:04.2]} 92... Kc1 {[%clk
0:00:58.8]} 93. Be2 {[%clk 0:00:03.9]} 93... Kd2 {[%clk 0:00:57.6]} 94. Bb5
{[%clk 0:00:00.5]} 94... Kc1 {[%clk 0:00:56.4]} 1/2-1/2

[Event "Live Chess"]
[Site "Chess.com"]
[Date "2024.06.02"]
[Round "-"]
[White "Dhaydon19"]
[Black "Duke_of_Bebington"]
[Result "1-0"]
[WhiteElo "2677"]
[BlackElo "1652"]
[TimeControl "300"]
[EndTime "22:17:05 PDT"]
[Termination "Dhaydon19 won by resignation"]

1. d3 {[%clk 0:04:57.2]} 1... d5 {[%clk 0:04:58.2]} 2. Nf3 {[%clk 0:04:56.9]}
2... Nc6 {[%clk 0:04:55.7]} 3. g3 {[%clk 0:04:56.6]} 3... e5 {[%clk 0:04:54.8]}
4. Bg2 {[%clk 0:04:56.3]} 4... f5 {[%clk 0:04:54.1]} 5. O-O {[%clk 0:04:55.4]}
5... e4 {[%clk 0:04:53.3]} 6. dxe4 {[%clk 0:04:54]} 6... fxe4 {[%clk 0:04:53.2]}
7. Nd4 {[%clk 0:04:53]} 7... Nf6 {[%clk 0:04:51.3]} 8. Nxc6 {[%clk 0:04:52.1]}
8... bxc6 {[%clk 0:04:50.1]} 9. c4 {[%clk 0:04:51.8]} 9... Bd6 {[%clk
0:04:33.7]} 10. Nc3 {[%clk 0:04:48.8]} 10... Bb7 {[%clk 0:04:29.9]} 11. Bg5
{[%clk 0:04:46.1]} 11... O-O {[%clk 0:04:23.9]} 12. Rc1 {[%clk 0:04:38.5]} 12...
h6 {[%clk 0:04:08.2]} 13. Bxf6 {[%clk 0:04:30.3]} 13... Rxf6 {[%clk 0:03:57.6]}
14. cxd5 {[%clk 0:04:29.1]} 14... cxd5 {[%clk 0:03:53.4]} 15. Nxd5 {[%clk
0:04:28.2]} 15... Re6 {[%clk 0:03:47.1]} 16. Qb3 {[%clk 0:04:22.1]} 16... Rb8
{[%clk 0:03:37.3]} 17. Nxc7 {[%clk 0:04:19.6]} 1-0

[Event "Live Chess"]
[Site "Chess.com"]
[Date "2024.06.02"]
[Round "-"]
[White "Isambard_Thomas"]
[Black "IgorSchukin"]
[Result "1-0"]
[WhiteElo "2163"]
[BlackElo "1782"]
[TimeControl "300"]
[EndTime "22:18:31 PDT"]
[Termination "Isambard_Thomas won by resignation"]

1. d4 {[%clk 0:04:57.8]} 1... d5 {[%clk 0:04:58.9]} 2. Bg5 {[%clk 0:04:56.4]}
2... h6 {[%clk 0:04:57]} 3. Bf4 {[%clk 0:04:55.5]} 3... Nf6 {[%clk 0:04:55.4]}
4. e3 {[%clk 0:04:54.7]} 4... Bf5 {[%clk 0:04:51.9]} 5. Nf3 {[%clk 0:04:53.1]}
5... e6 {[%clk 0:04:51]} 6. Bd3 {[%clk 0:04:52.1]} 6... Bd6 {[%clk 0:04:48.7]}
7. Ne5 {[%clk 0:04:45.4]} 7... Nbd7 {[%clk 0:04:43.6]} 8. c3 {[%clk 0:04:35.9]}
8... Bxd3 {[%clk 0:04:38]} 9. Qxd3 {[%clk 0:04:34.8]} 9... Ne4 {[%clk
0:04:34.3]} 10. Nd2 {[%clk 0:04:27.9]} 10... Ndf6 {[%clk 0:04:30.2]} 11. f3
{[%clk 0:04:24.1]} 11... Nxd2 {[%clk 0:04:28.3]} 12. Kxd2 {[%clk 0:04:23.1]}
12... c5 {[%clk 0:04:21.6]} 13. Qb5+ {[%clk 0:04:13.1]} 13... Nd7 {[%clk
0:04:19.7]} 14. dxc5 {[%clk 0:03:57.9]} 14... Bxe5 {[%clk 0:04:15.9]} 15. Bxe5
{[%clk 0:03:55.6]} 15... f6 {[%clk 0:04:13.1]} 16. Bd6 {[%clk 0:03:51]} 16...
Rc8 {[%clk 0:04:00.4]} 17. b4 {[%clk 0:03:40]} 17... Kf7 {[%clk 0:03:38.4]} 18.
Qxb7 {[%clk 0:03:31.3]} 18... Kg6 {[%clk 0:03:33.5]} 19. Qb5 {[%clk 0:03:19]}
19... Ne5 {[%clk 0:03:30.1]} 20. Bxe5 {[%clk 0:03:07.4]} 20... fxe5 {[%clk
0:03:28.4]} 21. Qd3+ {[%clk 0:03:05.9]} 21... Kf7 {[%clk 0:03:26.7]} 22. h4
{[%clk 0:03:00.9]} 22... h5 {[%clk 0:03:21.2]} 23. Rh3 {[%clk 0:02:58.6]} 23...
Rh6 {[%clk 0:03:17.2]} 24. Rg1 {[%clk 0:02:55.1]} 24... g5 {[%clk 0:03:12]} 25.
g3 {[%clk 0:02:31.9]} 25... Qf6 {[%clk 0:03:05.4]} 26. Ke2 {[%clk 0:02:28.8]}
26... g4 {[%clk 0:03:01.9]} 27. fxg4 {[%clk 0:02:25.9]} 27... hxg4 {[%clk
0:03:00.7]} 28. Rh2 {[%clk 0:02:25.3]} 28... Qf3+ {[%clk 0:02:57.5]} 29. Kd2
{[%clk 0:02:18.3]} 29... Ke7 {[%clk 0:02:54.5]} 30. Qe2 {[%clk 0:02:14.4]} 30...
Qe4 {[%clk 0:02:42.6]} 31. Rf2 {[%clk 0:02:07.3]} 31... a5 {[%clk 0:02:36.7]}
32. Rgf1 {[%clk 0:02:00.3]} 32... Rh7 {[%clk 0:02:31.1]} 33. Qa6 {[%clk
0:01:58.2]} 33... Rd8 {[%clk 0:02:13.1]} 34. Qxa5 {[%clk 0:01:54.5]} 34... d4
{[%clk 0:02:08]} 35. Qc7+ {[%clk 0:01:13.1]} 35... Rd7 {[%clk 0:02:04.8]} 36.
Rf7+ {[%clk 0:01:12.6]} 36... Rxf7 {[%clk 0:02:00.1]} 37. Rxf7+ {[%clk
0:01:11.3]} 37... Kxf7 {[%clk 0:01:58.6]} 38. Qxd7+ {[%clk 0:01:10.5]} 38... Kf6
{[%clk 0:01:56.8]} 39. Qd8+ {[%clk 0:01:05.9]} 39... Kf7 {[%clk 0:01:55.4]} 40.
cxd4 {[%clk 0:01:03.7]} 40... exd4 {[%clk 0:01:48.8]} 41. Qxd4 {[%clk
0:01:02.3]} 41... Qg2+ {[%clk 0:01:47.3]} 42. Kd3 {[%clk 0:00:55.3]} 42... Qxg3
{[%clk 0:01:43.2]} 43. Qf4+ {[%clk 0:00:54.1]} 43... Qxf4 {[%clk 0:01:41.4]} 44.
exf4 {[%clk 0:00:53.7]} 44... g3 {[%clk 0:01:40.3]} 45. Ke3 {[%clk 0:00:52.9]}
45... g2 {[%clk 0:01:39.4]} 46. Kf2 {[%clk 0:00:52.3]} 46... g1=Q+ {[%clk
0:01:37.6]} 47. Kxg1 {[%clk 0:00:51.8]} 1-0

[Event "Live Chess"]
[Site "Chess.com"]
[Date "2024.06.02"]
[Round "-"]
[White "elephantgerrald"]
[Black "MagnersCarlsberg2870"]
[Result "0-1"]
[WhiteElo "814"]
[BlackElo "1839"]
[TimeControl "300"]
[EndTime "22:19:40 PDT"]
[Termination "MagnersCarlsberg2870 won by checkmate"]

1. e4 {[%clk 0:04:58]} 1... e5 {[%clk 0:04:58.1]} 2. Nf3 {[%clk 0:04:57]} 2...
Nf6 {[%clk 0:04:56.8]} 3. Nxe5 {[%clk 0:04:55.8]} 3... Nc6 {[%clk 0:04:54.6]} 4.
Nxc6 {[%clk 0:04:54.2]} 4... dxc6 {[%clk 0:04:52]} 5. e5 {[%clk 0:04:53.2]} 5...
Nd5 {[%clk 0:04:46.1]} 6. d4 {[%clk 0:04:51.4]} 6... c5 {[%clk 0:04:39.2]} 7.
dxc5 {[%clk 0:04:48.2]} 7... Bxc5 {[%clk 0:04:37.9]} 8. Bc4 {[%clk 0:04:45.5]}
8... Bxf2+ {[%clk 0:04:31.6]} 9. Kxf2 {[%clk 0:04:43.3]} 9... Qh4+ {[%clk
0:04:30.5]} 10. g3 {[%clk 0:04:42.1]} 10... Qxc4 {[%clk 0:04:28.6]} 11. Qf3
{[%clk 0:04:36.2]} 11... Bg4 {[%clk 0:04:25.3]} 12. Qd3 {[%clk 0:04:28]} 12...
Qc5+ {[%clk 0:04:13.6]} 13. Kg2 {[%clk 0:04:23.2]} 13... O-O-O {[%clk
0:04:05.8]} 14. Qe4 {[%clk 0:04:15.4]} 14... g6 {[%clk 0:03:56.5]} 15. Qxg4+
{[%clk 0:04:12.7]} 15... Kb8 {[%clk 0:03:49.2]} 16. Rf1 {[%clk 0:03:59.5]} 16...
Qxc2+ {[%clk 0:03:46.7]} 17. Bd2 {[%clk 0:03:53.7]} 17... Qxb2 {[%clk
0:03:41.3]} 18. Qd4 {[%clk 0:03:40.8]} 18... Qxd4 {[%clk 0:03:30.5]} 19. Rxf7
{[%clk 0:03:24.1]} 19... Qxa1 {[%clk 0:03:24.9]} 20. Na3 {[%clk 0:03:21.9]}
20... Qxa2 {[%clk 0:03:22.6]} 21. Nb5 {[%clk 0:03:20]} 21... Qxd2+ {[%clk
0:03:21]} 22. Kh3 {[%clk 0:03:18.1]} 22... h5 {[%clk 0:03:02.3]} 23. e6 {[%clk
0:03:11.6]} 23... h4 {[%clk 0:02:59.8]} 24. gxh4 {[%clk 0:03:10]} 24... Qd3+
{[%clk 0:02:57]} 25. Kg4 {[%clk 0:03:07.2]} 25... Qxb5 {[%clk 0:02:53.7]} 26. e7
{[%clk 0:03:03.9]} 26... Nxe7 {[%clk 0:02:52.6]} 27. Rxe7 {[%clk 0:03:02.8]}
27... Qb4+ {[%clk 0:02:51.7]} 28. Kg5 {[%clk 0:03:00.9]} 28... Qxe7+ {[%clk
0:02:49.8]} 29. Kg4 {[%clk 0:02:57.6]} 29... Rd4+ {[%clk 0:02:48.6]} 30. Kf3
{[%clk 0:02:55.1]} 30... Rhxh4 {[%clk 0:02:46.3]} 31. Kg2 {[%clk 0:02:50.4]}
31... Rd3 {[%clk 0:02:43.9]} 32. Kf2 {[%clk 0:02:45.3]} 32... Rxh2+ {[%clk
0:02:42.2]} 33. Kf1 {[%clk 0:02:44]} 33... Rd1# {[%clk 0:02:40.9]} 0-1

[Event "Live Chess"]
[Site "Chess.com"]
[Date "2024.06.02"]
[Round "-"]
[White "Tushinskiy"]
[Black "RockTroll"]
[Result "0-1"]
[WhiteElo "2276"]
[BlackElo "2178"]
[TimeControl "300"]
[EndTime "22:19:47 PDT"]
[Termination "RockTroll won by resignation"]

1. d4 {[%clk 0:04:57.4]} 1... Nf6 {[%clk 0:04:59.9]} 2. c3 {[%clk 0:04:56.7]}
2... g6 {[%clk 0:04:59.6]} 3. Nf3 {[%clk 0:04:55.5]} 3... Bg7 {[%clk 0:04:59.2]}
4. Bf4 {[%clk 0:04:55]} 4... O-O {[%clk 0:04:58.6]} 5. Bg3 {[%clk 0:04:54.9]}
5... d6 {[%clk 0:04:58]} 6. Nbd2 {[%clk 0:04:54.8]} 6... Nc6 {[%clk 0:04:57.4]}
7. e4 {[%clk 0:04:53.8]} 7... Nh5 {[%clk 0:04:54.8]} 8. Bd3 {[%clk 0:04:52.3]}
8... e5 {[%clk 0:04:54]} 9. dxe5 {[%clk 0:04:51.3]} 9... dxe5 {[%clk 0:04:52.9]}
10. Qe2 {[%clk 0:04:49.6]} 10... Nf4 {[%clk 0:04:51.2]} 11. Bxf4 {[%clk
0:04:48]} 11... exf4 {[%clk 0:04:50.7]} 12. O-O {[%clk 0:04:47.6]} 12... Bg4
{[%clk 0:04:49.9]} 13. h3 {[%clk 0:04:45.9]} 13... Ne5 {[%clk 0:04:47.4]} 14.
Bc2 {[%clk 0:04:41.2]} 14... Bh5 {[%clk 0:04:42.6]} 15. Rad1 {[%clk 0:04:38.4]}
15... Qf6 {[%clk 0:04:32.1]} 16. Kh2 {[%clk 0:04:36.7]} 16... Rad8 {[%clk
0:04:30.4]} 17. Nc4 {[%clk 0:04:35.4]} 17... Nxf3+ {[%clk 0:04:26.2]} 18. gxf3
{[%clk 0:04:35.3]} 18... Rde8 {[%clk 0:04:21]} 19. Rg1 {[%clk 0:04:31.8]} 19...
Qh4 {[%clk 0:04:13.2]} 20. Rd5 {[%clk 0:04:22.3]} 20... h6 {[%clk 0:04:00.5]}
21. Bb3 {[%clk 0:04:16.7]} 21... Re7 {[%clk 0:03:54.2]} 22. Nd2 {[%clk 0:04:14]}
22... Rfe8 {[%clk 0:03:52.9]} 23. Nf1 {[%clk 0:04:05.2]} 23... Rxe4 {[%clk
0:03:47.8]} 24. Qd2 {[%clk 0:03:47.1]} 24... Re2 {[%clk 0:03:44.1]} 25. Rd8
{[%clk 0:03:44.3]} 25... Qxf2+ {[%clk 0:03:42.8]} 0-1